bitfinex-derivatives/quotes_ETHF0:USTF0_20250824
["timestamp","ask_amount","ask_price","bid_price","bid_amount"]
[1756059243240,0.3765,4927.6,4927.0,2.2381]
[1756059243435,1.32132,4927.4,4927.3,0.5829]
[1756059243634,1.32132,4927.4,4927.1,0.3761]
[1756059243635,1.26212,4927.2,4927.1,0.959]
[1756059243937,0.8383,4927.2,4927.1,1.3233]
[1756059244234,0.4754,4926.6,4926.5,0.4617]
[1756059244534,1.71978,4926.5,4926.3,1.06125554]
[1756059244738,1.7198,4926.3,4926.2,1.06125554]
[1756059244939,1.7198,4926.3,4925.9,0.4617]
[1756059244940,0.4061,4926.3,4926.1,1.06125554]
[1756059245135,0.40612,4926.1,4925.9,0.4617]
[1756059245335,0.4754,4926.1,4926.0,1.06100864]
[1756059245536,0.4754,4926.1,4926.0,1.89880864]
[1756059245936,1.3137,4926.1,4926.0,1.89880864]
[1756059246134,1.3137,4926.1,4926.0,1.06100864]
[1756059246335,0.40611,4926.2,4925.6,1.35336]
[1756059246336,1.3137,4926.0,4925.9,0.4617]
[1756059246536,1.3137,4926.0,4925.9,0.8378]
[1756059246732,0.8383,4926.0,4925.9,0.8378]
[1756059247941,1.2929,4926.0,4925.9,0.8378]
[1756059248138,1.3115,4925.9,4925.7,1.51370864]
[1756059248341,0.40617,4925.5,4925.4,0.8025]
[1756059248644,1.71767,4925.5,4925.4,0.4527]
[1756059249542,0.8569,4925.3,4925.1,0.8025]
[1756059249841,0.3583,4925.3,4925.2,0.8025]
[1756059250047,1.21908,4925.3,4925.2,0.4527]
[1756059250249,1.3115,4925.7,4924.9,1.51370864]
[1756059250443,1.3115,4925.1,4925.0,0.4527]
[1756059250640,1.01532,4926.0,4924.9,0.4527]
[1756059250845,1.3115,4925.0,4924.9,0.8025]
[1756059251242,2.1654,4925.0,4924.9,1.3549]
[1756059251640,1.8071,4924.5,4924.4,0.315]
[1756059251843,2.1654,4924.5,4924.4,1.3549]
[1756059253950,2.1654,4924.5,4924.4,1.6615]
[1756059254855,1.7108,4924.5,4924.4,2.1151]
[1756059255243,1.4728,4924.5,4924.4,2.52136]
[1756059255457,0.3111,4924.5,4924.4,2.52136]
[1756059255650,0.4986,4925.3,4924.7,0.8793]
[1756059255849,0.4986,4925.7,4925.6,0.859]
[1756059256049,0.8097,4925.7,4925.6,2.1151]
[1756059256251,1.7108,4925.7,4925.6,2.1151]
[1756059257248,2.1654,4925.7,4925.3,0.40618]
[1756059257553,2.1654,4925.1,4924.9,1.06199963]
[1756059257850,0.40623,4924.8,4924.5,1.06199963]
[1756059258055,0.8569,4924.7,4924.6,0.8025]
[1756059258255,0.8569,4924.7,4924.6,1.2561]
[1756059258456,0.8569,4924.7,4924.6,0.8025]
[1756059258654,0.8569,4924.7,4924.4,1.06199963]
[1756059258655,1.71774,4924.7,4924.4,1.06199963]
[1756059258953,1.3115,4924.6,4924.5,0.4527]
[1756059259155,0.8569,4924.6,4924.5,0.8025]
[1756059259356,0.8569,4924.6,4924.5,1.2561]
[1756059259953,0.4986,4924.6,4924.5,1.2561]
[1756059260160,0.4986,4924.9,4924.6,0.40624]
[1756059260357,0.4986,4924.9,4924.8,1.2561]
[1756059261450,0.3111,4924.9,4924.8,2.1151]
[1756059261657,1.26309,4925.2,4924.9,1.2561]
[1756059261851,2.11699,4925.2,4925.1,0.859]
[1756059262050,2.11699,4925.2,4925.1,1.6615]
[1756059262350,1.7108,4925.2,4925.1,2.1151]
[1756059262551,1.3525,4925.2,4925.1,2.1151]
[1756059262953,1.7108,4925.2,4925.1,2.1151]
[1756059264852,1.7108,4925.2,4925.1,1.6615]
[1756059265053,2.1654,4925.2,4925.1,1.6615]
[1756059265662,2.1654,4925.2,4925.1,1.0051]
[1756059266062,1.3115,4924.9,4924.7,0.8034]
[1756059266264,1.7108,4924.8,4924.7,1.3558]
[1756059266561,1.7108,4924.8,4924.7,2.06863]
[1756059266756,1.7108,4924.8,4924.7,2.52133]
[1756059266959,0.3111,4925.1,4925.0,0.544]
[1756059267161,0.3111,4925.1,4925.0,0.859]
[1756059267162,1.1145,4925.1,4925.0,0.859]
[1756059267367,1.7108,4925.1,4925.0,0.859]
[1756059267663,1.7108,4925.1,4924.9,0.40621]
[1756059267857,2.1654,4925.0,4924.9,1.17391]
[1756059268058,2.1654,4925.0,4924.9,2.06771]
[1756059268253,0.3111,4925.0,4924.9,2.52131]
[1756059268458,0.8129,4925.4,4925.3,1.6624]
[1756059268459,1.2122,4925.4,4925.3,1.6624]
[1756059268660,1.2122,4925.4,4925.3,2.1151]
[1756059268965,1.7108,4925.4,4925.3,2.1151]
[1756059269762,1.1145,4925.4,4925.3,2.1151]
[1756059270167,1.7108,4925.4,4925.3,2.1151]
[1756059272661,0.3111,4924.9,4924.8,0.8034]
[1756059272860,1.7108,4925.0,4924.9,2.1151]
[1756059273254,1.7108,4925.0,4924.9,1.3117]
[1756059273454,1.7108,4925.0,4924.5,0.4536]
[1756059273455,1.3525,4924.6,4924.5,2.1151]
[1756059273657,1.7108,4924.6,4924.5,2.1151]
[1756059273860,1.3525,4924.6,4924.5,2.1151]
[1756059274065,1.7108,4924.9,4924.8,1.6615]
[1756059274871,2.57164,4924.6,4924.5,0.315]
[1756059275164,2.57166,4924.4,4924.3,1.0051]
[1756059276869,2.1654,4924.4,4924.3,1.0051]
[1756059277262,0.96013,4924.8,4924.7,0.555]
[1756059277463,2.08903,4924.8,4924.7,2.1353]
[1756059278057,2.08903,4924.8,4923.9,1.41275228]
[1756059278058,0.869,4925.0,4924.9,1.60241]
[1756059278263,1.6828,4925.0,4924.9,1.1962]
[1756059278557,2.159,4925.0,4924.9,0.5321]
[1756059279055,2.159,4925.0,4924.9,2.1353]
[1756059279257,2.159,4925.0,4924.9,1.0045]
[1756059279658,1.6828,4925.0,4924.9,2.1353]
[1756059279865,0.9929,4925.4,4925.3,0.8457]
[1756059280071,0.6431,4925.4,4925.3,2.1353]
[1756059280266,1.1071,4925.4,4925.3,2.1353]
[1756059280569,0.40621,4925.0,4924.7,2.00465228]
[1756059280763,2.159,4924.9,4924.8,0.2907]
[1756059281569,0.869,4924.5,4924.4,1.41075]
[1756059281766,2.159,4924.5,4924.4,1.41075]
[1756059281965,2.159,4924.5,4924.4,1.76125]
[1756059282670,2.159,4924.5,4924.4,1.0045]
[1756059282867,2.159,4924.5,4924.4,1.355]
[1756059283666,2.159,4924.5,4924.4,1.0045]
[1756059284268,2.56525,4924.5,4924.1,0.40628]
[1756059284466,0.869,4924.2,4924.1,1.41078]
[1756059284670,2.159,4924.2,4924.1,1.41078]
[1756059284872,2.159,4924.2,4924.1,1.0045]
[1756059285561,2.159,4924.2,4924.1,1.355]
[1756059285769,0.328,4924.2,4924.1,2.1353]
[1756059286462,1.1071,4924.2,4924.1,2.1353]
[1756059286976,1.6828,4924.2,4924.1,2.1353]
[1756059287573,2.159,4924.2,4924.1,2.1353]
[1756059287972,1.2188,4924.2,4924.1,2.1353]
[1756059288170,1.6828,4924.2,4924.1,2.1353]
[1756059290271,0.792,4924.2,4924.1,2.1353]
[1756059290471,0.464,4924.6,4924.4,0.40625]
[1756059290669,0.40621,4925.0,4924.9,0.8457]
[1756059290870,1.21037,4925.4,4925.3,0.3136]
[1756059291064,2.56517,4925.4,4925.3,1.3181]
[1756059291268,2.56517,4925.4,4925.3,1.0045]
[1756059291866,0.40621,4925.0,4924.9,1.0586]
[1756059292069,2.56521,4925.0,4924.9,0.2414]
[1756059292272,1.6828,4925.0,4924.9,2.1353]
[1756059292472,0.328,4925.0,4924.9,2.1353]
[1756059292967,0.4062,4925.1,4924.9,2.06911]
[1756059293173,0.6431,4925.1,4925.0,2.5415]
[1756059293367,2.159,4925.1,4925.0,0.7631]
[1756059293569,0.869,4924.7,4924.6,1.6629]
[1756059293781,2.159,4924.7,4924.6,2.07484]
[1756059293972,2.159,4924.7,4924.6,0.2907]
[1756059294569,2.159,4924.7,4924.6,1.355]
[1756059294770,2.159,4924.7,4924.6,2.1353]
[1756059295080,2.159,4924.7,4924.6,1.3181]
[1756059295470,2.159,4924.7,4924.6,1.6686]
[1756059295878,2.159,4924.7,4924.6,2.1353]
[1756059296577,1.6828,4924.7,4924.6,2.1353]
[1756059297177,2.159,4924.7,4924.6,1.0045]
[1756059297584,2.159,4924.7,4924.6,2.1353]
[1756059298082,2.159,4924.7,4924.6,1.6686]
[1756059298282,2.159,4924.7,4924.6,1.0045]
[1756059298677,0.2259,4924.3,4924.2,2.47135228]
[1756059298883,2.159,4924.3,4924.2,2.60895228]
[1756059299578,2.159,4924.3,4924.2,0.5321]
[1756059300175,19.289,4924.6,4924.0,0.4724]
[1756059300176,2.159,4924.1,4924.0,0.4724]
[1756059300381,2.56531,4923.9,4923.7,1.41275228]
[1756059300581,2.159,4923.8,4923.7,1.94485228]
[1756059300785,2.159,4923.8,4923.7,2.76775228]
[1756059301481,2.159,4923.8,4923.7,1.6686]
[1756059301678,1.6828,4923.8,4923.7,3.54805228]
[1756059301980,1.6828,4924.7,4924.6,1.6686]
[1756059302180,1.6828,4924.7,4924.6,2.1353]
[1756059302380,2.56523,4924.7,4924.6,1.3181]
[1756059302581,0.9037,4924.3,4924.2,2.1353]
[1756059302888,1.333,4924.3,4924.2,2.1353]
[1756059303084,0.328,4924.3,4924.2,2.1353]
[1756059303885,1.1071,4924.3,4924.2,2.1353]
[1756059304180,2.159,4924.3,4924.2,1.6686]
[1756059304380,2.159,4924.3,4924.2,1.0045]
[1756059305993,2.159,4924.3,4924.2,0.7631]
[1756059306785,2.159,4924.3,4924.2,0.2907]
[1756059306980,0.0203,4924.8,4923.8,0.9826]
[1756059306981,2.0779,4923.9,4923.8,0.9826]
[1756059308388,2.0779,4923.6,4923.5,1.14652328]
[1756059308681,2.0779,4923.6,4923.5,1.55285328]
[1756059308886,2.0779,4923.6,4923.5,1.79892328]
[1756059309189,2.0779,4923.6,4923.5,1.43892328]
[1756059309791,2.0779,4923.6,4923.0,0.4803]
[1756059309991,0.844,4922.4,4922.3,0.4244]
[1756059310290,2.0779,4922.3,4922.2,1.635]
[1756059310485,21.74302063,4926.1,4923.0,0.8506]
[1756059310486,0.4558,4923.1,4923.0,0.8506]
[1756059310683,1.0739,4923.8,4923.7,2.1153]
[1756059310885,1.6496,4924.2,4924.1,2.1153]
[1756059311091,1.2998,4924.2,4924.1,2.1153]
[1756059311290,0.3,4924.2,4924.1,2.1153]
[1756059311484,0.3,4924.2,4924.1,2.3770976]
[1756059312388,0.40616,4925.5,4924.7,0.40622]
[1756059312588,0.202424,4925.3,4925.2,2.1153]
[1756059312796,2.280324,4925.3,4925.2,0.2617976]
[1756059312992,1.0464,4924.2,4924.1,0.3158]
[1756059313191,2.0779,4924.2,4924.1,0.26170167]
[1756059314893,6.0982,4924.2,4923.0,0.40636]
[1756059315094,1.25037,4923.1,4922.8,0.4244]
[1756059315293,1.9761,4922.9,4922.7,0.36]
[1756059315492,1.9761,4922.5,4922.4,1.635]
[1756059315797,0.5259,4922.2,4922.1,1.43324]
[1756059315997,1.9761,4922.2,4922.1,1.3426]
[1756059316396,0.5259,4921.9,4921.8,0.36]
[1756059316593,0.844,4921.9,4921.3,0.88681]
[1756059316896,19.269,4923.0,4921.7,2.1153]
[1756059316897,1.5478,4921.8,4921.7,2.1153]
[1756059317197,0.3,4921.8,4921.7,2.1153]
[1756059317398,0.4558,4922.6,4922.2,0.4244]
[1756059317586,1.0739,4922.6,4922.5,1.6909]
[1756059317791,0.4283,4923.1,4921.1,1.18195242]
[1756059317792,0.4558,4923.1,4923.0,0.5348]
[1756059317987,0.7558,4923.1,4923.0,2.1153]
[1756059318495,1.5478,4923.1,4923.0,0.9826]
[1756059318692,1.9761,4923.1,4922.6,1.1908]
[1756059318902,0.844,4922.7,4922.6,0.4244]
[1756059319092,0.844,4922.7,4922.4,0.40642]
[1756059319396,0.6181,4922.8,4922.7,0.69879]
[1756059319597,1.0739,4922.8,4922.7,1.3309]
[1756059319797,1.5478,4922.8,4922.7,1.635]
[1756059319991,1.9761,4922.8,4922.7,1.635]
[1756059320596,0.844,4922.4,4922.3,0.9826]
[1756059320790,1.9761,4922.4,4922.3,1.3426]
[1756059321202,1.9761,4922.4,4921.0,0.0203]
[1756059321203,2.38255,4922.1,4921.6,0.76648]
[1756059321403,1.5478,4922.0,4921.9,0.5582]
[1756059321596,1.9761,4922.0,4921.9,0.5582]
[1756059321798,1.2505,4921.4,4921.3,0.9182]
[1756059322097,1.9761,4921.1,4921.0,0.9826]
[1756059322289,1.5478,4921.1,4921.0,1.635]
[1756059322488,1.0739,4921.1,4921.0,2.1153]
[1756059322694,1.9761,4921.1,4921.0,1.3426]
[1756059322896,1.9761,4921.1,4920.6,0.88686]
[1756059322897,0.40655,4920.9,4920.6,0.8403]
[1756059323204,1.9761,4920.8,4920.7,1.3426]
[1756059323499,1.9761,4920.8,4920.7,0.9826]
[1756059323692,0.6181,4920.4,4920.3,0.5582]
[1756059323900,0.248,4920.4,4920.2,0.4803]
[1756059324092,0.4558,4920.8,4920.2,0.4803]
[1756059324288,0.4558,4920.8,4920.4,1.67129]
[1756059324489,0.4558,4920.8,4920.4,0.40659]
[1756059324889,0.4558,4920.8,4920.7,1.2647]
[1756059326101,0.7038,4920.8,4920.7,1.2647]
[1756059326302,1.3219,4920.8,4920.7,1.8229]
[1756059326490,0.40653,4921.1,4920.7,1.25715]
[1756059326695,1.70631,4921.4,4921.3,1.635]
[1756059326897,1.5478,4921.0,4920.9,0.9826]
[1756059327098,0.3,4920.8,4920.7,0.5582]
[1756059327297,0.3,4920.8,4920.7,2.04156]
[1756059327298,1.0739,4920.8,4920.7,2.04156]
[1756059327597,1.72842,4921.3,4921.2,1.3426]
[1756059327894,1.48042,4921.3,4921.2,2.1153]
[1756059328094,1.72838,4921.7,4921.6,2.1153]
[1756059328691,1.95428,4921.7,4921.6,2.1153]
[1756059328892,0.4558,4922.1,4922.0,2.1153]
[1756059329093,0.8661,4922.6,4922.5,0.8506]
[1756059329298,1.3219,4922.6,4922.5,2.1153]
[1756059329899,1.5478,4922.6,4922.5,1.635]
[1756059330104,1.9761,4922.6,4922.5,1.635]
[1756059330305,0.4558,4923.2,4922.6,0.4803]
[1756059330598,0.4558,4924.1,4924.0,1.67099]
[1756059330807,0.7038,4925.2,4924.5,0.40625]
[1756059330992,0.40624,4924.6,4924.0,0.40628]
[1756059331196,0.40624,4924.6,4924.1,0.40628]
[1756059331392,0.40626,4924.4,4923.9,0.4063]
[1756059331594,0.2389,4924.2,4924.1,0.83067]
[1756059331809,0.6947,4924.2,4924.1,1.19067]
[1756059331999,0.4558,4924.2,4924.1,0.7844]
[1756059332194,0.4558,4924.2,4924.1,1.2647]
[1756059332393,1.10097,4924.2,4924.1,0.7844]
[1756059332604,1.52927,4924.2,4923.6,1.31101]
[1756059333002,1.01546,4925.3,4923.5,0.7844]
[1756059333003,0.40629,4924.0,4923.5,0.7844]
[1756059333209,0.8621,4923.9,4923.4,0.40633]
[1756059333410,0.40628,4924.1,4923.6,0.8403]
[1756059333708,0.86208,4924.1,4923.9,1.2647]
[1756059333898,0.40628,4924.1,4924.0,1.2647]
[1756059334100,0.4062,4925.2,4924.8,0.4803]
[1756059334299,0.40621,4925.0,4924.9,0.36]
[1756059334504,0.4558,4925.0,4924.9,0.8403]
[1756059334906,0.4558,4925.0,4924.9,1.2647]
[1756059335304,0.40616,4925.6,4924.4,0.8403]
[1756059335602,0.4558,4925.8,4924.7,1.2647]
[1756059335801,0.4558,4925.8,4925.4,0.40617]
[1756059335997,0.4558,4925.8,4925.6,0.4244]
[1756059336197,0.4558,4925.8,4925.7,1.2647]
[1756059337797,0.4558,4925.8,4925.1,0.40619]
[1756059337798,1.1118,4925.8,4925.2,0.4331]
[1756059338003,0.20193229,4925.9,4925.2,0.4331]
[1756059338209,1.10066,4925.5,4925.4,0.4174]
[1756059338713,0.40622,4924.8,4924.7,0.7806]
[1756059339013,1.10072,4924.8,4924.7,0.3475]
[1756059339206,0.4577,4924.8,4924.7,0.7806]
[1756059339404,0.4577,4924.8,4924.7,1.198]
[1756059339606,0.4192,4925.3,4924.5,0.40624]
[1756059339909,0.4577,4925.0,4924.9,1.198]
[1756059340507,0.4577,4925.6,4924.2,0.0203]
[1756059340710,0.40615,4925.7,4925.6,1.198]
[1756059341403,0.86385,4925.7,4925.6,1.198]
[1756059342705,0.40615,4925.7,4925.6,1.198]
[1756059342905,0.40616,4925.7,4925.5,0.40616]
[1756059343100,0.40613,4926.0,4925.7,0.40615]
[1756059343310,0.40609,4926.5,4926.1,0.40611]
[1756059343505,0.40607,4926.7,4926.3,0.40609]
[1756059343704,0.4577,4926.8,4926.6,1.198]
[1756059343908,0.40605,4927.0,4926.9,1.198]
[1756059344302,1.10055,4927.0,4926.9,0.7649]
[1756059344503,0.40608,4926.5,4926.4,0.4331]
[1756059345007,0.40608,4926.5,4926.4,1.198]
[1756059345008,0.86378,4926.5,4926.4,1.198]
[1756059345208,0.4577,4926.5,4926.4,1.198]
[1756059345409,0.40607,4926.7,4926.4,1.60409]
[1756059345712,0.40607,4926.7,4926.5,1.198]
[1756059345909,0.40605,4926.9,4925.8,1.01536]
[1756059346213,0.86373,4927.1,4927.0,1.198]
[1756059347106,1.51973,4927.1,4927.0,0.7649]
[1756059347509,0.40607,4926.7,4926.5,0.4331]
[1756059347810,1.06207,4926.7,4926.6,0.4174]
[1756059348006,0.20034016,4927.1,4926.2,0.40611]
[1756059348007,0.40609,4926.5,4926.3,0.7649]
[1756059348203,0.4577,4926.4,4926.3,0.3475]
[1756059348613,0.4577,4926.4,4926.3,0.7806]
[1756059348804,0.4577,4926.4,4926.3,1.198]
[1756059350109,0.86377,4926.7,4926.4,1.198]
[1756059350409,0.86377,4926.7,4925.6,1.0154]
[1756059350410,0.40604,4927.1,4926.5,0.4174]
[1756059350608,0.40604,4927.1,4926.8,0.7806]
[1756059350808,0.40605,4927.0,4926.7,0.40606]
[1756059351104,0.40601,4927.5,4927.1,0.40603]
[1756059351407,0.40601,4927.5,4926.3,1.01524]
[1756059351408,0.40601,4927.5,4927.4,1.198]
[1756059352308,19.6877,4928.1,4927.4,0.4174]
[1756059352508,0.40596,4928.1,4927.5,0.40599]
[1756059352810,0.40598,4927.9,4927.5,0.40599]
[1756059353013,0.40598,4927.9,4927.8,1.198]
[1756059355714,1.10048,4927.9,4927.8,0.7649]
[1756059355915,0.6945,4927.5,4927.4,0.4174]
[1756059356115,1.1137,4927.5,4927.4,0.4174]
[1756059356312,1.5197,4927.5,4927.4,0.4174]
[1756059356511,0.6945,4927.1,4927.0,0.7649]
[1756059356721,0.86377,4926.7,4926.6,1.198]
[1756059357020,1.10057,4926.7,4926.6,0.7649]
[1756059357221,1.51977,4926.7,4926.6,0.7649]
[1756059357922,1.51977,4926.7,4926.6,0.4174]
[1756059359221,0.40607,4926.7,4926.6,1.198]
[1756059359416,1.01499,4927.6,4926.3,0.3475]
[1756059359623,1.1137,4926.2,4925.7,0.3475]
[1756059359819,0.40614,4925.8,4925.7,0.3475]
[1756059360020,0.86384,4925.8,4925.7,0.7649]
[1756059360218,1.51984,4925.8,4925.7,0.7649]
[1756059360420,0.40612,4926.1,4925.7,1.198]
[1756059360623,0.2368,4926.1,4925.7,0.7806]
[1756059360823,1.1137,4925.9,4925.8,0.4174]
[1756059361420,1.1137,4925.9,4925.8,0.7649]
[1756059361620,1.1137,4925.9,4925.8,0.4174]
[1756059361825,0.40616,4925.6,4925.5,0.4174]
[1756059362125,1.10066,4925.6,4925.5,0.7649]
[1756059362323,1.01532,4926.0,4925.0,0.3475]
[1756059362524,1.5199,4925.1,4925.0,0.3475]
[1756059362720,1.5199,4925.1,4925.0,0.7649]
[1756059362917,1.1137,4924.9,4924.5,0.3475]
[1756059363126,1.51997,4924.3,4924.2,0.4174]
[1756059363427,1.51997,4924.3,4924.2,0.7649]
[1756059363633,1.51997,4924.3,4924.2,0.4174]
[1756059363926,1.51997,4924.3,4923.4,0.40633]
[1756059363927,0.86401,4923.8,4923.7,0.7649]
[1756059364328,1.10081,4923.8,4923.7,0.7649]
[1756059364527,1.01557,4924.8,4923.5,0.4174]
[1756059364528,1.52002,4923.6,4923.5,0.4174]
[1756059364726,0.2368,4923.7,4922.6,0.7806]
[1756059364922,0.6945,4923.7,4922.8,0.3475]
[1756059365121,0.86402,4923.6,4923.2,0.40635]
[1756059365426,0.40632,4923.6,4923.2,0.40635]
[1756059365622,0.4577,4923.5,4923.4,0.4331]
[1756059366232,0.4577,4923.5,4923.4,1.198]
[1756059368430,0.6821,4923.5,4923.4,1.198]
[1756059369832,0.4461,4924.4,4924.0,0.7701]
[1756059370032,0.4461,4924.4,4923.9,1.2373]
[1756059370226,0.8589,4924.5,4923.9,1.2373]
[1756059370429,49.47244,4925.5,4924.0,1.2373]
[1756059370430,0.40622,4924.9,4924.0,1.2373]
[1756059370626,0.4461,4925.0,4923.8,1.01577]
[1756059370828,0.85227,4925.4,4925.2,1.2373]
[1756059371025,0.4461,4925.4,4925.3,1.2373]
[1756059371828,0.2244,4925.8,4925.5,0.40616]
[1756059372034,0.4128,4926.1,4925.5,0.40616]
[1756059372236,0.4128,4926.1,4923.6,1.42350197]
[1756059372237,0.4461,4926.1,4925.1,0.0203]
[1756059372534,0.4461,4926.7,4926.3,0.40609]
[1756059372730,1.03513,4927.9,4925.9,1.2373]
[1756059372731,1.0833,4927.9,4925.9,1.2373]
[1756059372924,0.4461,4927.5,4925.9,0.3685]
[1756059373236,0.4461,4927.5,4925.8,1.01536]
[1756059373237,0.40598,4927.8,4927.2,1.2373]
[1756059373529,0.2244,4928.1,4927.4,1.2951]
[1756059373726,0.8589,4928.3,4927.6,0.4672]
[1756059373923,0.8589,4928.3,4927.7,0.3482]
[1756059373924,0.4461,4928.3,4927.7,0.3482]
[1756059374124,0.2244,4928.6,4927.4,0.40601]
[1756059374335,0.40597,4927.9,4927.2,0.40602]
[1756059374729,0.40597,4927.9,4927.3,1.2373]
[1756059374924,0.85206,4928.1,4927.4,0.40601]
[1756059375127,0.85206,4928.1,4927.5,0.4219]
[1756059375329,0.40597,4927.9,4927.3,0.4672]
[1756059375525,0.4128,4928.3,4927.6,0.4219]
[1756059375727,0.4461,4927.2,4927.0,0.4672]
[1756059375934,0.2244,4927.3,4927.1,0.7701]
[1756059376237,0.2244,4927.3,4927.2,0.4219]
[1756059376437,0.6705,4927.3,4927.2,0.4219]
[1756059376734,1.0833,4927.3,4927.2,0.4219]
[1756059376931,1.0833,4927.3,4926.8,0.40606]
[1756059377124,1.0833,4927.5,4927.0,0.40604]
[1756059377329,1.01469,4929.1,4927.7,0.8154]
[1756059377330,0.40597,4927.9,4927.7,0.8154]
[1756059377529,0.85207,4927.9,4927.8,0.7701]
[1756059377932,0.85207,4927.9,4927.8,0.4219]
[1756059377933,1.48927,4927.9,4927.8,0.4219]
[1756059378433,0.4461,4927.6,4927.5,0.7701]
[1756059378830,1.0833,4927.6,4927.1,0.8891]
[1756059379031,1.0833,4927.5,4927.2,0.7701]
[1756059379336,0.4461,4927.4,4927.3,0.7701]
[1756059379830,0.40598,4927.8,4927.3,1.64332]
[1756059380031,0.8589,4928.4,4927.5,0.4672]
[1756059380230,0.8589,4928.4,4927.8,1.2373]
[1756059380231,0.40596,4928.1,4927.8,1.2373]
[1756059380432,0.40596,4928.1,4927.5,0.40599]
[1756059380632,0.85206,4928.1,4928.0,0.7701]
[1756059380932,0.6705,4927.8,4927.4,0.3482]
[1756059381241,0.4128,4927.7,4927.5,0.4219]
[1756059381430,0.6705,4927.6,4927.5,0.7701]
[1756059382633,0.4461,4928.0,4927.6,0.40599]
[1756059382838,0.4461,4928.0,4927.9,1.2373]
[1756059384339,0.6705,4928.0,4927.9,0.7701]
[1756059384634,0.4461,4928.0,4927.9,0.7701]
[1756059384937,0.6705,4928.5,4928.0,1.2373]
[1756059385140,0.40588,4929.0,4928.7,0.4059]
[1756059385340,0.40589,4928.9,4928.8,1.2373]
[1756059385637,0.85199,4928.9,4928.8,1.2373]
[1756059386037,0.85199,4928.9,4924.3,3.744723]
[1756059386038,1.26478,4929.0,4928.9,0.4219]
[1756059386242,0.40591,4928.6,4928.5,0.3482]
[1756059386440,0.63031,4928.6,4928.5,0.7701]
[1756059386638,1.07641,4928.6,4928.5,0.7701]
[1756059388238,0.40599,4927.7,4926.9,0.4219]
[1756059388434,0.40595,4928.2,4927.8,0.40597]
[1756059388631,0.4059,4928.7,4928.3,0.4219]
[1756059388836,0.40591,4928.6,4928.5,1.2373]
[1756059389240,0.852,4928.8,4928.7,0.3482]
[1756059389438,0.4059,4928.8,4928.7,1.2373]
[1756059390435,0.852,4928.8,4928.7,1.2373]
[1756059390944,0.4059,4928.8,4928.7,1.2373]
[1756059393845,0.4059,4928.8,4928.7,2.0422]
[1756059394246,1.1634,4928.8,4928.7,2.0422]
[1756059395044,0.71737,4928.0,4927.9,0.5044]
[1756059395249,1.0378,4928.0,4927.9,1.575]
[1756059395452,1.0378,4928.0,4927.9,2.0422]
[1756059395643,0.7575,4928.0,4927.9,2.0422]
[1756059395950,1.0378,4928.0,4927.9,2.0422]
[1756059396253,0.3114,4928.0,4927.9,2.0422]
[1756059396750,0.7738,4928.0,4927.9,2.0422]
[1756059396943,0.5917,4928.0,4927.9,2.0422]
[1756059397143,0.86834,4928.3,4928.0,1.2058]
[1756059397345,0.86834,4928.3,4928.2,2.0028]
[1756059397954,1.16344,4928.3,4928.2,2.0028]
[1756059398347,1.44404,4928.3,4928.2,2.0028]
[1756059398648,2.30254,4928.3,4928.2,1.2574]
[1756059398846,2.30254,4928.3,4928.2,0.9412]
[1756059399250,2.30257,4927.9,4927.8,1.5585]
[1756059399558,1.87187,4927.9,4927.8,2.0028]
[1756059400151,1.4659,4927.9,4927.8,2.0028]
[1756059400751,1.01431,4931.0,4929.4,0.8896]
[1756059400949,0.3726,4930.5,4928.9,0.0202]
[1756059401144,1.01444,4930.3,4929.6,1.2058]
[1756059401349,0.40582,4929.7,4929.6,1.2058]
[1756059401548,1.01444,4930.3,4929.6,1.2058]
[1756059401849,0.40581,4929.8,4929.6,1.2058]
[1756059402150,0.4058,4930.0,4929.7,1.2058]
[1756059402349,0.40581,4929.9,4929.6,0.40582]
[1756059402741,0.40587,4929.2,4927.7,1.01495]
[1756059402955,0.4624,4929.4,4927.8,1.42350197]
[1756059403148,0.40588,4929.0,4928.8,0.4453]
[1756059403351,0.40586,4929.2,4928.1,0.0202]
[1756059403549,0.40588,4929.0,4928.7,0.40589]
[1756059403756,0.40589,4928.9,4928.5,0.40591]
[1756059403950,0.40587,4929.1,4928.7,0.4059]
[1756059404249,0.4624,4930.9,4929.5,0.7615]
[1756059404453,0.40576,4930.5,4929.9,0.3162]
[1756059404649,0.40574,4930.7,4930.0,0.40579]
[1756059404851,0.4624,4930.9,4930.1,1.2058]
[1756059405057,0.50569,4931.4,4930.9,1.2058]
[1756059405246,0.40569,4931.4,4930.8,0.40573]
[1756059405445,0.40569,4931.4,4930.5,0.16508355]
[1756059405446,0.20005593,4932.1,4931.0,0.7807]
[1756059405754,0.20005593,4932.1,4931.0,1.2058]
[1756059406051,0.50568,4931.4,4931.2,0.3162]
[1756059406246,0.5624,4932.7,4931.3,0.7605]
[1756059406446,0.4624,4932.1,4930.5,0.7605]
[1756059406755,0.5624,4933.1,4930.6,0.0202]
[1756059406949,0.40556,4932.9,4931.4,0.7605]
[1756059407152,0.50554,4933.1,4932.4,0.4056]
[1756059407348,0.1,4934.0,4931.7,0.0202]
[1756059407553,0.1,4934.0,4931.6,1.01415]
[1756059407554,0.40551,4933.5,4932.9,1.2058]
[1756059407852,0.5624,4933.1,4933.0,0.7615]